[Event "Titled Tuesday Blitz August 31 2021"]
[White "Priyanka Nutakki"]
[Black "Dronavalli, Harika"]
[WhiteFideId "25049615"]
[BlackFideId "5015197"]
[WhiteElo "1916"]
[BlackElo "2422"]
[Result "0-1"]
[Round "04"]
[TimeControl "180+1"]
[Date "2021.08.31"]
[WhiteClock "0:00:02"]
[BlackClock "0:00:13"]

1. d4 {[%clk 0:03:00]}  Nf6 {[%clk 0:02:59]} 2. Bf4 {[%clk 0:03:00]}  d6 {[%clk 0:02:54]} 3. e3 {[%clk 0:02:54]}  Nbd7 {[%clk 0:02:53]} 4. Nf3 {[%clk 0:02:54]}  Nh5 {[%clk 0:02:50]} 5. Bg5 {[%clk 0:02:52]}  h6 {[%clk 0:02:50]} 6. Bh4 {[%clk 0:02:52]}  g5 {[%clk 0:02:51]} 7. Bg3 {[%clk 0:02:52]}  Bg7 {[%clk 0:02:50]} 8. c4 {[%clk 0:02:45]}  c5 {[%clk 0:02:45]} 9. Nc3 {[%clk 0:02:44]}  Qa5 {[%clk 0:02:33]} 10. Be2 {[%clk 0:02:36]}  Nxg3 {[%clk 0:02:32]} 11. hxg3 {[%clk 0:02:37]}  Nf6 {[%clk 0:02:25]} 12. Qc2 {[%clk 0:02:32]}  Bg4 {[%clk 0:02:16]} 13. a3 {[%clk 0:02:10]}  Rc8 {[%clk 0:02:09]} 14. dxc5 {[%clk 0:02:03]}  Qxc5 {[%clk 0:02:01]} 15. b4 {[%clk 0:01:38]}  Qb6 {[%clk 0:01:53]} 16. Rc1 {[%clk 0:01:19]}  a6 {[%clk 0:01:46]} 17. O-O {[%clk 0:01:06]}  O-O {[%clk 0:01:44]} 18. Nd4 {[%clk 0:00:41]}  Bxe2 {[%clk 0:01:43]} 19. Qxe2 {[%clk 0:00:42]}  e6 {[%clk 0:01:44]} 20. Rfd1 {[%clk 0:00:40]}  Rc7 {[%clk 0:01:39]} 21. Na4 {[%clk 0:00:23]}  Qa7 {[%clk 0:01:40]} 22. Nb3 {[%clk 0:00:17]}  Rd8 {[%clk 0:01:13]} 23. c5 {[%clk 0:00:15]}  d5 {[%clk 0:01:14]} 24. Nb6 {[%clk 0:00:15]}  Nd7 {[%clk 0:01:11]} 25. Nxd7 {[%clk 0:00:12]}  Rcxd7 {[%clk 0:01:11]} 26. Na5 {[%clk 0:00:10]}  Rc8 {[%clk 0:01:03]} 27. Rc2 {[%clk 0:00:09]}  Rdc7 {[%clk 0:01:03]} 28. Rdc1 {[%clk 0:00:09]}  Bf6 {[%clk 0:00:56]} 29. e4 {[%clk 0:00:09]}  dxe4 {[%clk 0:00:55]} 30. Qxe4 {[%clk 0:00:08]}  Kg7 {[%clk 0:00:55]} 31. Nc4 {[%clk 0:00:08]}  Rd8 {[%clk 0:00:52]} 32. Nd6 {[%clk 0:00:08]}  Qb8 {[%clk 0:00:46]} 33. Rd1 {[%clk 0:00:07]}  b6 {[%clk 0:00:44]} 34. Rcd2 {[%clk 0:00:03]}  bxc5 {[%clk 0:00:43]} 35. bxc5 {[%clk 0:00:03]}  Rxc5 {[%clk 0:00:39]} 36. Qa4 {[%clk 0:00:01]}  Rf8 {[%clk 0:00:29]} 37. Ne4 {[%clk 0:00:01]}  Rf5 {[%clk 0:00:28]} 38. Nxf6 {[%clk 0:00:02]}  Rxf6 {[%clk 0:00:29]} 39. Qxa6 {[%clk 0:00:02]}  Qb3 {[%clk 0:00:28]} 40. Qd3 {[%clk 0:00:03]}  Qxd3 {[%clk 0:00:28]} 41. Rxd3 {[%clk 0:00:03]}  Rf5 {[%clk 0:00:29]} 42. Rc1 {[%clk 0:00:04]}  Ra5 {[%clk 0:00:29]} 43. Rc7 {[%clk 0:00:04]}  Rfa8 {[%clk 0:00:28]} 44. Rdd7 {[%clk 0:00:04]}  Rf5 {[%clk 0:00:29]} 45. g4 {[%clk 0:00:04]}  Rf4 {[%clk 0:00:28]} 46. f3 {[%clk 0:00:02]}  Rxa3 {[%clk 0:00:27]} 47. Kh2 {[%clk 0:00:02]}  Ra2 {[%clk 0:00:27]} 48. Kg3 {[%clk 0:00:02]}  Kg6 {[%clk 0:00:25]} 49. Rd8 {[%clk 0:00:01]}  Kh7 {[%clk 0:00:19]} 50. Rdd7 {[%clk 0:00:02]}  Kg7 {[%clk 0:00:19]} 51. Rd8 {[%clk 0:00:02]}  Rb2 {[%clk 0:00:19]} 52. Rdd7 {[%clk 0:00:02]}  e5 {[%clk 0:00:18]} 53. Re7 {[%clk 0:00:02]}  Re2 {[%clk 0:00:18]} 54. Rb7 {[%clk 0:00:01]}  e4 {[%clk 0:00:18]} 55. fxe4 {[%clk 0:00:01]}  Rexe4 {[%clk 0:00:19]} 56. Rxe4 {[%clk 0:00:01]}  Rxe4 {[%clk 0:00:20]} 57. Ra7 {[%clk 0:00:02]}  Re3+ {[%clk 0:00:20]} 58. Kh2 {[%clk 0:00:02]}  Kg6 {[%clk 0:00:21]} 59. Ra6+ {[%clk 0:00:03]}  Re6 {[%clk 0:00:21]} 60. Ra5 {[%clk 0:00:03]}  Re4 {[%clk 0:00:22]} 61. Kg3 {[%clk 0:00:03]}  Rf4 {[%clk 0:00:22]} 62. Rb5 {[%clk 0:00:03]}  f5 {[%clk 0:00:22]} 63. Rb6+ {[%clk 0:00:04]}  Kg7 {[%clk 0:00:23]} 64. gxf5 {[%clk 0:00:04]}  Rxf5 {[%clk 0:00:23]} 65. Rb7+ {[%clk 0:00:05]}  Rf7 {[%clk 0:00:23]} 66. Rb6 {[%clk 0:00:05]}  Rf6 {[%clk 0:00:24]} 67. Rb7+ {[%clk 0:00:05]}  Kg6 {[%clk 0:00:25]} 68. Rb5 {[%clk 0:00:06]}  h5 {[%clk 0:00:25]} 69. Ra5 {[%clk 0:00:06]}  h4+ {[%clk 0:00:25]} 70. Kh2 {[%clk 0:00:06]}  Rf2 {[%clk 0:00:25]} 71. Kh3 {[%clk 0:00:06]}  Rb2 {[%clk 0:00:22]} 72. Ra6+ {[%clk 0:00:03]}  Kf5 {[%clk 0:00:22]} 73. g4+ {[%clk 0:00:03]}  Ke4 {[%clk 0:00:18]} 74. Ra4+ {[%clk 0:00:02]}  Ke3 {[%clk 0:00:16]} 75. Ra5 {[%clk 0:00:01]}  Rb3 {[%clk 0:00:12]} 76. Rf5 {[%clk 0:00:01]}  Ke4+ {[%clk 0:00:12]} 77. Kg2 {[%clk 0:00:01]}  Rg3+ {[%clk 0:00:13]} 78. Kh2 {[%clk 0:00:01]}  Rxg4 {[%clk 0:00:14]} 79. Kh3 {[%clk 0:00:02]}  Kxf5 {[%clk 0:00:13]} 0-1


[Site "https://www.chess.com"]

[Event "Titled Tuesday Blitz August 31 2021"]
[White "Richter, Nils"]
[Black "Stribuk, Artiom"]
[WhiteFideId "12990809"]
[BlackFideId "13515659"]
[WhiteElo "2289"]
[BlackElo "2224"]
[Result "1-0"]
[Round "04"]
[TimeControl "180+1"]
[Date "2021.08.31"]
[WhiteClock "0:00:33"]
[BlackClock "0:00:10"]

1. e4 {[%clk 0:03:00]}  c5 {[%clk 0:02:56]} 2. Nf3 {[%clk 0:03:01]}  Nc6 {[%clk 0:02:55]} 3. Bb5 {[%clk 0:03:00]}  d6 {[%clk 0:02:53]} 4. O-O {[%clk 0:02:59]}  Bd7 {[%clk 0:02:52]} 5. d4 {[%clk 0:02:56]}  cxd4 {[%clk 0:02:49]} 6. Nxd4 {[%clk 0:02:57]}  Nf6 {[%clk 0:02:49]} 7. Re1 {[%clk 0:02:55]}  Nxd4 {[%clk 0:02:46]} 8. Bxd7+ {[%clk 0:02:54]}  Qxd7 {[%clk 0:02:47]} 9. Qxd4 {[%clk 0:02:55]}  e5 {[%clk 0:02:46]} 10. Qd3 {[%clk 0:02:53]}  h6 {[%clk 0:02:44]} 11. c4 {[%clk 0:02:51]}  Be7 {[%clk 0:02:42]} 12. Nc3 {[%clk 0:02:51]}  O-O {[%clk 0:02:41]} 13. Be3 {[%clk 0:02:45]}  a6 {[%clk 0:02:40]} 14. a4 {[%clk 0:02:44]}  Rac8 {[%clk 0:02:36]} 15. b3 {[%clk 0:02:44]}  Qe6 {[%clk 0:02:10]} 16. h3 {[%clk 0:02:40]}  Rfd8 {[%clk 0:02:08]} 17. Red1 {[%clk 0:02:40]}  Rd7 {[%clk 0:02:05]} 18. a5 {[%clk 0:02:32]}  Bd8 {[%clk 0:01:53]} 19. Ra2 {[%clk 0:02:17]}  Kh8 {[%clk 0:01:48]} 20. f3 {[%clk 0:01:57]}  Kg8 {[%clk 0:01:46]} 21. Kh1 {[%clk 0:01:57]}  Kh8 {[%clk 0:01:26]} 22. Kh2 {[%clk 0:01:56]}  Kg8 {[%clk 0:01:26]} 23. g4 {[%clk 0:01:56]}  Nh7 {[%clk 0:01:21]} 24. Nd5 {[%clk 0:01:52]}  Ng5 {[%clk 0:01:16]} 25. Bxg5 {[%clk 0:01:50]}  hxg5 {[%clk 0:01:14]} 26. Kg2 {[%clk 0:01:50]}  g6 {[%clk 0:01:13]} 27. b4 {[%clk 0:01:42]}  Kg7 {[%clk 0:01:14]} 28. b5 {[%clk 0:01:41]}  Rc5 {[%clk 0:01:13]} 29. Rb1 {[%clk 0:01:37]}  Kh7 {[%clk 0:00:50]} 30. bxa6 {[%clk 0:01:22]}  bxa6 {[%clk 0:00:51]} 31. Rb8 {[%clk 0:01:18]}  Bxa5 {[%clk 0:00:42]} 32. Ra8 {[%clk 0:01:09]}  Rb7 {[%clk 0:00:32]} 33. Rxa6 {[%clk 0:01:07]}  Bd8 {[%clk 0:00:30]} 34. Ra7 {[%clk 0:01:05]}  Qd7 {[%clk 0:00:28]} 35. Qa3 {[%clk 0:00:47]}  Kg7 {[%clk 0:00:24]} 36. Rxb7 {[%clk 0:00:38]}  Qxb7 {[%clk 0:00:25]} 37. Rb2 {[%clk 0:00:38]}  Qc8 {[%clk 0:00:19]} 38. Ne3 {[%clk 0:00:38]}  Rc6 {[%clk 0:00:16]} 39. Qa7 {[%clk 0:00:35]}  Qc7 {[%clk 0:00:10]} 40. Rb7 {[%clk 0:00:33]} 1-0


[Site "https://www.chess.com"]

[Event "Titled Tuesday Blitz August 31 2021"]
[White "Sargsyan, Anna M."]
[Black "Dzhaparov, Medet"]
[WhiteFideId "13308130"]
[BlackFideId "13803689"]
[WhiteElo "2263"]
[BlackElo "1702"]
[Result "1-0"]
[Round "04"]
[TimeControl "180+1"]
[Date "2021.08.31"]
[WhiteClock "0:00:44"]
[BlackClock "0:01:24"]

1. d4 {[%clk 0:03:00]}  Nf6 {[%clk 0:02:58]} 2. c4 {[%clk 0:03:01]}  g6 {[%clk 0:02:58]} 3. g3 {[%clk 0:03:01]}  Bg7 {[%clk 0:02:56]} 4. Bg2 {[%clk 0:03:01]}  d5 {[%clk 0:02:56]} 5. cxd5 {[%clk 0:03:00]}  Nxd5 {[%clk 0:02:57]} 6. e4 {[%clk 0:03:01]}  Nb6 {[%clk 0:02:57]} 7. Ne2 {[%clk 0:03:01]}  O-O {[%clk 0:02:57]} 8. O-O {[%clk 0:03:01]}  Nc6 {[%clk 0:02:55]} 9. d5 {[%clk 0:03:01]}  Na5 {[%clk 0:02:56]} 10. Nbc3 {[%clk 0:03:02]}  c6 {[%clk 0:02:56]} 11. Bg5 {[%clk 0:02:52]}  cxd5 {[%clk 0:02:40]} 12. exd5 {[%clk 0:02:52]}  Nac4 {[%clk 0:02:29]} 13. b3 {[%clk 0:02:49]}  Nd6 {[%clk 0:02:29]} 14. Rc1 {[%clk 0:02:48]}  h6 {[%clk 0:02:23]} 15. Be3 {[%clk 0:02:45]}  Nf5 {[%clk 0:02:07]} 16. Bc5 {[%clk 0:02:45]}  Bd7 {[%clk 0:02:04]} 17. Re1 {[%clk 0:02:44]}  Rc8 {[%clk 0:02:04]} 18. Ba3 {[%clk 0:02:43]}  Re8 {[%clk 0:01:59]} 19. Qd2 {[%clk 0:02:42]}  e5 {[%clk 0:01:56]} 20. d6 {[%clk 0:02:36]}  Bc6 {[%clk 0:01:53]} 21. Nd5 {[%clk 0:02:31]}  Nxd5 {[%clk 0:01:43]} 22. Bxd5 {[%clk 0:02:30]}  Qd7 {[%clk 0:01:43]} 23. Red1 {[%clk 0:02:16]}  Bxd5 {[%clk 0:01:31]} 24. Qxd5 {[%clk 0:02:13]}  Rxc1 {[%clk 0:01:25]} 25. Rxc1 {[%clk 0:00:49]}  Nd4 {[%clk 0:01:25]} 26. Nxd4 {[%clk 0:00:45]}  exd4 {[%clk 0:01:26]} 27. Rc7 {[%clk 0:00:45]}  Qh3 {[%clk 0:01:24]} 28. Qxf7+ {[%clk 0:00:44]} 1-0


[Site "https://www.chess.com"]

[Event "Titled Tuesday Blitz August 31 2021"]
[White "Shkapenko, Pavel"]
[Black "Timofeev, Artyom"]
[WhiteFideId "4151933"]
[BlackFideId "4140419"]
[WhiteElo "2386"]
[BlackElo "2582"]
[Result "1/2-1/2"]
[Round "04"]
[TimeControl "180+1"]
[Date "2021.08.31"]
[WhiteClock "0:00:04"]
[BlackClock "0:00:55"]

1. e4 {[%clk 0:03:00]}  c5 {[%clk 0:02:59]} 2. c3 {[%clk 0:03:00]}  e6 {[%clk 0:02:54]} 3. d4 {[%clk 0:02:59]}  d5 {[%clk 0:02:54]} 4. exd5 {[%clk 0:02:59]}  exd5 {[%clk 0:02:54]} 5. Nf3 {[%clk 0:03:00]}  Nc6 {[%clk 0:02:53]} 6. g3 {[%clk 0:02:50]}  Nf6 {[%clk 0:02:49]} 7. Bg2 {[%clk 0:02:42]}  Be7 {[%clk 0:02:48]} 8. dxc5 {[%clk 0:02:42]}  Bxc5 {[%clk 0:02:46]} 9. O-O {[%clk 0:02:41]}  O-O {[%clk 0:02:46]} 10. Bg5 {[%clk 0:02:41]}  Be6 {[%clk 0:02:46]} 11. Nbd2 {[%clk 0:02:41]}  h6 {[%clk 0:02:45]} 12. Nb3 {[%clk 0:02:41]}  Bb6 {[%clk 0:02:42]} 13. Bf4 {[%clk 0:02:41]}  Qd7 {[%clk 0:02:38]} 14. Ne5 {[%clk 0:02:35]}  Nxe5 {[%clk 0:02:38]} 15. Bxe5 {[%clk 0:02:36]}  Ng4 {[%clk 0:02:37]} 16. Bd4 {[%clk 0:02:35]}  Bxd4 {[%clk 0:02:25]} 17. Nxd4 {[%clk 0:02:28]}  Ne5 {[%clk 0:02:25]} 18. Re1 {[%clk 0:02:25]}  Nc4 {[%clk 0:02:23]} 19. Nxe6 {[%clk 0:01:51]}  fxe6 {[%clk 0:02:22]} 20. Rxe6 {[%clk 0:01:51]}  Rad8 {[%clk 0:02:21]} 21. Re2 {[%clk 0:01:50]}  d4 {[%clk 0:02:09]} 22. Qxd4 {[%clk 0:01:33]}  Qxd4 {[%clk 0:02:09]} 23. cxd4 {[%clk 0:01:33]}  Rxd4 {[%clk 0:02:09]} 24. Bxb7 {[%clk 0:01:11]}  Rb8 {[%clk 0:02:08]} 25. Ba6 {[%clk 0:01:09]}  Nxb2 {[%clk 0:02:07]} 26. Rb1 {[%clk 0:01:03]}  Rdb4 {[%clk 0:02:07]} 27. Rc2 {[%clk 0:00:56]}  R4b6 {[%clk 0:01:58]} 28. Rc8+ {[%clk 0:00:50]}  Rxc8 {[%clk 0:01:57]} 29. Bxc8 {[%clk 0:00:51]}  a5 {[%clk 0:01:57]} 30. Bf5 {[%clk 0:00:40]}  Kf7 {[%clk 0:01:55]} 31. h4 {[%clk 0:00:39]}  Kf6 {[%clk 0:01:56]} 32. Bc2 {[%clk 0:00:38]}  Ke5 {[%clk 0:01:55]} 33. Re1+ {[%clk 0:00:36]}  Kd4 {[%clk 0:01:55]} 34. Re7 {[%clk 0:00:35]}  g5 {[%clk 0:01:42]} 35. hxg5 {[%clk 0:00:33]}  hxg5 {[%clk 0:01:42]} 36. Ra7 {[%clk 0:00:26]}  Rb5 {[%clk 0:01:41]} 37. Bb3 {[%clk 0:00:20]}  Rc5 {[%clk 0:01:38]} 38. Rd7+ {[%clk 0:00:19]}  Kc3 {[%clk 0:01:37]} 39. Rd5 {[%clk 0:00:18]}  Rxd5 {[%clk 0:01:37]} 40. Bxd5 {[%clk 0:00:18]}  Nd3 {[%clk 0:01:37]} 41. Kg2 {[%clk 0:00:17]}  a4 {[%clk 0:01:36]} 42. Kf3 {[%clk 0:00:15]}  Nb4 {[%clk 0:01:33]} 43. Bf7 {[%clk 0:00:14]}  Kb2 {[%clk 0:01:33]} 44. Kg4 {[%clk 0:00:15]}  Nxa2 {[%clk 0:01:33]} 45. Kxg5 {[%clk 0:00:14]}  Nc1 {[%clk 0:01:33]} 46. f4 {[%clk 0:00:11]}  a3 {[%clk 0:01:33]} 47. f5 {[%clk 0:00:11]}  Nb3 {[%clk 0:01:34]} 48. Bxb3 {[%clk 0:00:11]}  Kxb3 {[%clk 0:01:34]} 49. f6 {[%clk 0:00:11]}  a2 {[%clk 0:01:34]} 50. f7 {[%clk 0:00:11]}  a1=Q {[%clk 0:01:34]} 51. f8=Q {[%clk 0:00:11]}  Qe5+ {[%clk 0:01:35]} 52. Kg4 {[%clk 0:00:10]}  Qe4+ {[%clk 0:01:35]} 53. Qf4 {[%clk 0:00:10]}  Qg6+ {[%clk 0:01:36]} 54. Kf3 {[%clk 0:00:10]}  Qc6+ {[%clk 0:01:35]} 55. Kf2 {[%clk 0:00:10]}  Qc2+ {[%clk 0:01:33]} 56. Kf3 {[%clk 0:00:10]}  Qc6+ {[%clk 0:01:33]} 57. Qe4 {[%clk 0:00:10]}  Qf6+ {[%clk 0:01:33]} 58. Kg2 {[%clk 0:00:10]}  Qg7 {[%clk 0:01:30]} 59. g4 {[%clk 0:00:10]}  Kc3 {[%clk 0:01:30]} 60. Kg3 {[%clk 0:00:10]}  Kb2 {[%clk 0:01:28]} 61. Qd5 {[%clk 0:00:08]}  Qc7+ {[%clk 0:01:23]} 62. Kf3 {[%clk 0:00:07]}  Qc3+ {[%clk 0:01:21]} 63. Ke4 {[%clk 0:00:06]}  Qe1+ {[%clk 0:01:20]} 64. Kf5 {[%clk 0:00:06]}  Qf2+ {[%clk 0:01:18]} 65. Kg6 {[%clk 0:00:05]}  Qf8 {[%clk 0:01:13]} 66. g5 {[%clk 0:00:05]}  Qe8+ {[%clk 0:01:13]} 67. Kh6 {[%clk 0:00:05]}  Qf8+ {[%clk 0:01:14]} 68. Kh5 {[%clk 0:00:04]}  Qh8+ {[%clk 0:01:13]} 69. Kg4 {[%clk 0:00:04]}  Qc8+ {[%clk 0:01:14]} 70. Qf5 {[%clk 0:00:04]}  Qc4+ {[%clk 0:01:14]} 71. Kh5 {[%clk 0:00:04]}  Qe2+ {[%clk 0:01:14]} 72. Kh6 {[%clk 0:00:04]}  Qh2+ {[%clk 0:01:14]} 73. Kg7 {[%clk 0:00:04]}  Qc7+ {[%clk 0:01:13]} 74. Qf7 {[%clk 0:00:04]}  Qg3 {[%clk 0:01:08]} 75. g6 {[%clk 0:00:04]}  Ka3 {[%clk 0:01:08]} 76. Kh7 {[%clk 0:00:04]}  Qh4+ {[%clk 0:01:08]} 77. Kg8 {[%clk 0:00:04]}  Ka4 {[%clk 0:01:03]} 78. g7 {[%clk 0:00:04]}  Qd8+ {[%clk 0:01:03]} 79. Kh7 {[%clk 0:00:04]}  Qh4+ {[%clk 0:01:03]} 80. Kg6 {[%clk 0:00:03]}  Qg4+ {[%clk 0:01:03]} 81. Kf6 {[%clk 0:00:04]}  Qd4+ {[%clk 0:01:03]} 82. Ke6 {[%clk 0:00:04]}  Qc4+ {[%clk 0:01:03]} 83. Ke7 {[%clk 0:00:04]}  Qc7+ {[%clk 0:01:00]} 84. Kf8 {[%clk 0:00:04]}  Qc5+ {[%clk 0:00:59]} 85. Qe7 {[%clk 0:00:04]}  Qf5+ {[%clk 0:00:59]} 86. Ke8 {[%clk 0:00:04]}  Qc8+ {[%clk 0:00:57]} 87. Kf7 {[%clk 0:00:04]}  Qf5+ {[%clk 0:00:57]} 88. Qf6 {[%clk 0:00:03]}  Qd5+ {[%clk 0:00:57]} 89. Kf8 {[%clk 0:00:03]}  Qc5+ {[%clk 0:00:57]} 90. Qe7 {[%clk 0:00:04]}  Qf5+ {[%clk 0:00:57]} 91. Kg8 {[%clk 0:00:04]}  Qd5+ {[%clk 0:00:55]} 92. Qf7 {[%clk 0:00:04]}  Qd8+ {[%clk 0:00:55]} 93. Kh7 {[%clk 0:00:04]}  Qh4+ {[%clk 0:00:55]} 94. Kg8 {[%clk 0:00:04]}  Qd8+ {[%clk 0:00:55]} 1/2-1/2


[Site "https://www.chess.com"]

[Event "Titled Tuesday Blitz August 31 2021"]
[White "Shuvalov, Evgenij"]
[Black "Urazayev, Arystanbek"]
[WhiteFideId "4187237"]
[BlackFideId "13709810"]
[WhiteElo "2163"]
[BlackElo "2321"]
[Result "0-1"]
[Round "04"]
[TimeControl "180+1"]
[Date "2021.08.31"]
[WhiteClock "0:00:58"]
[BlackClock "0:01:59"]

1. Nf3 {[%clk 0:02:54]}  b6 {[%clk 0:02:54]} 2. e4 {[%clk 0:02:52]}  Bb7 {[%clk 0:02:54]} 3. Nc3 {[%clk 0:02:52]}  e6 {[%clk 0:02:54]} 4. a3 {[%clk 0:02:52]}  Nf6 {[%clk 0:02:45]} 5. e5 {[%clk 0:02:44]}  Nd5 {[%clk 0:02:45]} 6. Nxd5 {[%clk 0:02:37]}  Bxd5 {[%clk 0:02:45]} 7. d4 {[%clk 0:02:38]}  Be7 {[%clk 0:02:43]} 8. Bd3 {[%clk 0:02:37]}  c5 {[%clk 0:02:41]} 9. O-O {[%clk 0:02:22]}  Nc6 {[%clk 0:02:39]} 10. dxc5 {[%clk 0:02:14]}  bxc5 {[%clk 0:02:39]} 11. c4 {[%clk 0:02:11]}  Bxf3 {[%clk 0:02:39]} 12. Qxf3 {[%clk 0:02:12]}  Nxe5 {[%clk 0:02:40]} 13. Qg3 {[%clk 0:02:11]}  Nxd3 {[%clk 0:02:40]} 14. Qxd3 {[%clk 0:02:09]}  O-O {[%clk 0:02:40]} 15. Bf4 {[%clk 0:02:08]}  d5 {[%clk 0:02:38]} 16. Rfd1 {[%clk 0:02:02]}  d4 {[%clk 0:02:37]} 17. b4 {[%clk 0:02:01]}  cxb4 {[%clk 0:02:37]} 18. axb4 {[%clk 0:02:00]}  Bxb4 {[%clk 0:02:38]} 19. Ra6 {[%clk 0:01:49]}  Bc3 {[%clk 0:02:30]} 20. Bd2 {[%clk 0:01:45]}  Bxd2 {[%clk 0:02:18]} 21. Qxd2 {[%clk 0:01:46]}  e5 {[%clk 0:02:17]} 22. Rda1 {[%clk 0:01:43]}  Qc7 {[%clk 0:02:16]} 23. Qa2 {[%clk 0:01:42]}  Rfc8 {[%clk 0:02:07]} 24. f3 {[%clk 0:01:41]}  Qxc4 {[%clk 0:02:04]} 25. Qxc4 {[%clk 0:01:38]}  Rxc4 {[%clk 0:02:05]} 26. Rxa7 {[%clk 0:01:39]}  Rxa7 {[%clk 0:02:06]} 27. Rxa7 {[%clk 0:01:39]}  f6 {[%clk 0:02:04]} 28. Rd7 {[%clk 0:01:38]}  Rc2 {[%clk 0:02:02]} 29. h4 {[%clk 0:01:36]}  h5 {[%clk 0:02:02]} 30. Kf1 {[%clk 0:01:35]}  Kh7 {[%clk 0:02:02]} 31. g3 {[%clk 0:01:31]}  Kg6 {[%clk 0:02:01]} 32. Kg1 {[%clk 0:01:30]}  f5 {[%clk 0:01:55]} 33. Rd6+ {[%clk 0:01:26]}  Kf7 {[%clk 0:01:55]} 34. Rd7+ {[%clk 0:01:25]}  Kf6 {[%clk 0:01:56]} 35. Rd6+ {[%clk 0:01:23]}  Ke7 {[%clk 0:01:56]} 36. Rg6 {[%clk 0:01:23]}  d3 {[%clk 0:01:55]} 37. Rxg7+ {[%clk 0:01:09]}  Kf6 {[%clk 0:01:55]} 38. Rd7 {[%clk 0:01:09]}  e4 {[%clk 0:01:55]} 39. fxe4 {[%clk 0:01:03]}  fxe4 {[%clk 0:01:55]} 40. Kf1 {[%clk 0:01:04]}  Kf5 {[%clk 0:01:56]} 41. Rd5+ {[%clk 0:01:01]}  Kg4 {[%clk 0:01:56]} 42. Rg5+ {[%clk 0:01:01]}  Kf3 {[%clk 0:01:57]} 43. Rf5+ {[%clk 0:01:01]}  Kxg3 {[%clk 0:01:57]} 44. Rxh5 {[%clk 0:00:59]}  e3 {[%clk 0:01:58]} 45. Rg5+ {[%clk 0:00:59]}  Kf4 {[%clk 0:01:58]} 46. Rd5 {[%clk 0:00:58]}  Rc1+ {[%clk 0:01:58]} 47. Kg2 {[%clk 0:00:59]}  d2 {[%clk 0:01:59]} 48. h5 {[%clk 0:00:58]}  d1=Q {[%clk 0:01:59]} 49. Rxd1 {[%clk 0:00:58]}  Rxd1 {[%clk 0:01:59]} 0-1


[Site "https://www.chess.com"]

[Event "Titled Tuesday Blitz August 31 2021"]
[White "Solon, Nathan"]
[Black "Baskin, Robert"]
[WhiteFideId "2017229"]
[BlackFideId "24662402"]
[WhiteElo "2659"]
[BlackElo "2462"]
[Result "1-0"]
[Round "04"]
[TimeControl "180+1"]
[Date "2021.08.31"]
[WhiteClock "0:00:05"]
[BlackClock "0:00:03"]

1. d4 {[%clk 0:02:56]}  f5 {[%clk 0:02:56]} 2. Bg5 {[%clk 0:02:55]}  h6 {[%clk 0:02:53]} 3. Bh4 {[%clk 0:02:55]}  g5 {[%clk 0:02:53]} 4. e3 {[%clk 0:02:55]}  Nf6 {[%clk 0:02:53]} 5. Bg3 {[%clk 0:02:56]}  d6 {[%clk 0:02:51]} 6. h4 {[%clk 0:02:55]}  Bg7 {[%clk 0:02:51]} 7. hxg5 {[%clk 0:02:46]}  hxg5 {[%clk 0:02:52]} 8. Rxh8+ {[%clk 0:02:46]}  Bxh8 {[%clk 0:02:53]} 9. Nh3 {[%clk 0:02:46]}  g4 {[%clk 0:02:48]} 10. Nf4 {[%clk 0:02:46]}  e6 {[%clk 0:02:44]} 11. Bc4 {[%clk 0:02:39]}  Qe7 {[%clk 0:02:33]} 12. Nc3 {[%clk 0:02:30]}  Nc6 {[%clk 0:02:30]} 13. Qe2 {[%clk 0:02:22]}  Bd7 {[%clk 0:02:29]} 14. d5 {[%clk 0:02:02]}  Ne5 {[%clk 0:02:07]} 15. dxe6 {[%clk 0:01:58]}  Bc6 {[%clk 0:02:05]} 16. Nfd5 {[%clk 0:01:46]}  Nxd5 {[%clk 0:02:04]} 17. Nxd5 {[%clk 0:01:43]}  Bxd5 {[%clk 0:02:02]} 18. Bxd5 {[%clk 0:01:43]}  c6 {[%clk 0:02:02]} 19. Bb3 {[%clk 0:01:44]}  d5 {[%clk 0:01:53]} 20. c4 {[%clk 0:01:41]}  dxc4 {[%clk 0:01:48]} 21. Bxe5 {[%clk 0:01:35]}  Bxe5 {[%clk 0:01:38]} 22. Qxc4 {[%clk 0:01:30]}  O-O-O {[%clk 0:01:38]} 23. Rd1 {[%clk 0:01:25]}  Rxd1+ {[%clk 0:01:34]} 24. Kxd1 {[%clk 0:01:26]}  Bxb2 {[%clk 0:01:33]} 25. Qc2 {[%clk 0:01:23]}  Qf6 {[%clk 0:01:13]} 26. e7 {[%clk 0:01:21]}  Kd7 {[%clk 0:01:13]} 27. Ke2 {[%clk 0:00:40]}  Bc3 {[%clk 0:00:46]} 28. Qd3+ {[%clk 0:00:30]}  Kxe7 {[%clk 0:00:45]} 29. Qc4 {[%clk 0:00:30]}  b5 {[%clk 0:00:35]} 30. Qg8 {[%clk 0:00:28]}  Qd6 {[%clk 0:00:31]} 31. Qf7+ {[%clk 0:00:23]}  Kd8 {[%clk 0:00:31]} 32. g3 {[%clk 0:00:16]}  Qe5 {[%clk 0:00:13]} 33. Be6 {[%clk 0:00:14]}  Qd6 {[%clk 0:00:10]} 34. Bxf5 {[%clk 0:00:13]}  a5 {[%clk 0:00:10]} 35. Bxg4 {[%clk 0:00:10]}  a4 {[%clk 0:00:10]} 36. Bf3 {[%clk 0:00:07]}  b4 {[%clk 0:00:10]} 37. Qc4 {[%clk 0:00:05]}  Kc7 {[%clk 0:00:09]} 38. Qa6 {[%clk 0:00:05]}  a3 {[%clk 0:00:08]} 39. Qa7+ {[%clk 0:00:05]}  Kd8 {[%clk 0:00:08]} 40. Kf1 {[%clk 0:00:05]}  Qd2 {[%clk 0:00:06]} 41. Kg2 {[%clk 0:00:05]}  Qxa2 {[%clk 0:00:06]} 42. Bxc6 {[%clk 0:00:05]}  Qe6 {[%clk 0:00:06]} 43. Qa8+ {[%clk 0:00:05]}  Ke7 {[%clk 0:00:04]} 44. Bd5 {[%clk 0:00:06]}  Qd7 {[%clk 0:00:04]} 45. Bf3 {[%clk 0:00:05]}  Qe6 {[%clk 0:00:02]} 46. Bd5 {[%clk 0:00:05]}  Qd7 {[%clk 0:00:02]} 47. Bf3 {[%clk 0:00:05]}  Qc7 {[%clk 0:00:02]} 48. Qd5 {[%clk 0:00:05]}  Qc5 {[%clk 0:00:03]} 49. Qxc5+ {[%clk 0:00:05]} 1-0


[Site "https://www.chess.com"]